fUST/lending_fUST_20240704
["ID","MTS","AMOUNT","RATE_DAILY","PERIOD"]
[331150894,1720108242056,-506.27187391,0.00013698,2]
[331150895,1720108242065,-527.29058408,0.00013698,2]
[331150896,1720108242073,-500.0,0.00013698,2]
[331150897,1720108242082,-601.52333115,0.00013698,2]
[331150898,1720108242092,-500.0,0.00013698,2]
[331150899,1720108242101,-503.36225032,0.00013698,2]
[331150900,1720108242110,-504.92352374,0.00013698,2]
[331150901,1720108242119,-506.19410695,0.00013698,2]
[331150902,1720108242128,-500.0,0.00013698,2]
[331150903,1720108242137,-500.0,0.00013698,2]
[331150904,1720108242146,-500.0,0.00013698,2]
[331150905,1720108242156,-500.0,0.00013698,2]
[331150906,1720108242165,-500.0,0.00013698,2]
[331150907,1720108242174,-500.0,0.00013698,2]
[331150908,1720108242184,-502.09919256,0.00013698,2]
[331150909,1720108242194,-162.8326842,0.00013698,2]
[331150910,1720108242204,-536.49865275,0.00013698,2]
[331150911,1720108242213,-5504.51,0.00013698,2]
[331150912,1720108242221,-505.51173001,0.00013698,2]
[331150913,1720108242231,-500.0,0.00013698,2]
[331150914,1720108242241,-500.0,0.00013698,2]
[331150915,1720108242250,-503.79900098,0.00013698,2]
[331150916,1720108242260,-500.0,0.00013698,2]
[331150917,1720108242269,-500.0,0.00013698,2]
[331150918,1720108242278,-501.76799852,0.00013698,2]
[331150919,1720108242287,-500.0,0.00013698,2]
[331150920,1720108242296,-500.0,0.00013698,2]
[331150921,1720108242306,-500.0,0.00013698,2]
[331150922,1720108242315,-500.0,0.00013698,2]
[331150923,1720108242324,-5620.07,0.00013698,2]
[331150924,1720108242333,-500.0,0.00013698,2]
[331150925,1720108242345,-500.0,0.00013698,2]
[331150926,1720108242355,-504.99510701,0.00013698,2]
[331150927,1720108242366,-500.0,0.00013698,2]
[331150928,1720108242376,-500.0,0.00013698,2]
[331150929,1720108242385,-527.96335354,0.00013698,2]
[331150930,1720108242394,-500.0,0.00013698,2]
[331150931,1720108242403,-500.0,0.00013698,2]
[331150932,1720108242412,-500.0,0.00013698,2]
[331150933,1720108242422,-503.91974439,0.00013698,2]
[331150934,1720108242431,-500.0,0.00013698,2]
[331150935,1720108242441,-500.0,0.00013698,2]
[331150936,1720108242450,-501.59215236,0.00013698,2]
[331150937,1720108242459,-501.08516647,0.00013698,2]
[331150938,1720108242468,-500.0,0.00013698,2]
[331150939,1720108242477,-500.0,0.00013698,2]
[331150940,1720108242487,-843.72,0.00013698,2]
[331150941,1720108242496,-500.0,0.00013698,2]
[331150942,1720108242505,-500.0,0.00013698,2]
[331150943,1720108242514,-500.0,0.00013698,2]
[331150944,1720108242523,-715.86,0.00013698,2]
[331150945,1720108242533,-500.0,0.00013698,2]
[331150946,1720108242542,-504.95194089,0.00013698,2]
[331150947,1720108242551,-1491.96,0.00013698,2]
[331150948,1720108242560,-504.19239552,0.00013698,2]
[331150949,1720108242569,-500.0,0.00013698,2]
[331150950,1720108242578,-500.0,0.00013698,2]
[331150951,1720108242588,-586.55,0.00013698,2]
[331150952,1720108242599,-500.0,0.00013698,2]
[331150953,1720108242608,-586.55,0.00013698,2]
[331150954,1720108242618,-500.0,0.00013698,2]
[331150955,1720108242627,-505.1629612,0.00013698,2]
[331150956,1720108242636,-566.98097364,0.00013698,2]
[331150957,1720108242645,-500.0,0.00013698,2]
[331150958,1720108242655,-500.0,0.00013698,2]
[331150960,1720108242669,-504.1322412,0.00013698,2]
[331150961,1720108242678,-500.0,0.00013698,2]
[331150962,1720108242688,-263.02224504,0.00013698,2]
[331150963,1720108242698,-9714.11,0.00013698,2]
[331150964,1720108242708,-503.4498777,0.00013698,2]
[331150965,1720108242717,-502.29625066,0.00013698,2]
[331150967,1720108242727,-500.0,0.00013698,2]
[331150969,1720108242738,-505.46619013,0.00013698,2]
[331150970,1720108242747,-501.85057337,0.00013698,2]
[331150971,1720108242756,-506.39025932,0.00013698,2]
[331150972,1720108242766,-500.0,0.00013698,2]
[331150973,1720108242775,-500.0,0.00013698,2]
[331150974,1720108242785,-502.867436,0.00013698,2]
[331150976,1720108242794,-500.0,0.00013698,2]
[331150979,1720108242803,-501.54577722,0.00013698,2]
[331150980,1720108242812,-500.0,0.00013698,2]
[331150983,1720108242821,-304.26591386,0.00013698,2]
[331150995,1720108242935,-561.51,0.00013698,2]
[331150997,1720108242945,-500.0,0.00013698,2]
[331150999,1720108242955,-516.42583207,0.00013698,2]
[331151001,1720108242964,-500.0,0.00013698,2]
[331151003,1720108242974,-500.0,0.00013698,2]
[331151005,1720108242984,-500.0,0.00013698,2]
[331151007,1720108242993,-500.0,0.00013698,2]
[331151010,1720108243003,-502.24044204,0.00013698,2]
[331151013,1720108243013,-504.04088921,0.00013698,2]
[331151016,1720108243022,-500.0,0.00013698,2]
[331151019,1720108243031,-500.0,0.00013698,2]
[331151022,1720108243041,-686.02,0.00013698,2]
[331151025,1720108243051,-500.0,0.00013698,2]
[331151028,1720108243060,-503.01395375,0.00013698,2]
[331151031,1720108243070,-500.10829568,0.00013698,2]
[331151034,1720108243079,-500.0,0.00013698,2]
[331151037,1720108243089,-500.0,0.00013698,2]
[331151040,1720108243107,-500.0,0.00013698,2]
[331151044,1720108243116,-500.0,0.00013698,2]
[331151048,1720108243126,-500.0,0.00013698,2]
[331151052,1720108243136,-500.0,0.00013698,2]
[331151055,1720108243148,-500.0,0.00013698,2]
[331151059,1720108243158,-2457.7,0.00013698,2]
[331151062,1720108243167,-500.0,0.00013698,2]
[331151065,1720108243177,-1138.99,0.00013698,2]
[331151070,1720108243199,-500.0,0.00013698,2]
[331151073,1720108243209,-500.0,0.00013698,2]
[331151076,1720108243219,-500.0,0.00013698,2]
[331151077,1720108243230,-504.34013973,0.00013698,2]
[331151078,1720108243240,-500.0,0.00013698,2]
[331151080,1720108243251,-1065.74,0.00013698,2]
[331151083,1720108243262,-632.23,0.00013698,2]
[331151086,1720108243273,-500.0,0.00013698,2]
[331151090,1720108243284,-500.0,0.00013698,2]
[331151093,1720108243295,-500.0,0.00013698,2]
[331151095,1720108243306,-411.25285483,0.00013698,2]
[331151097,1720108243318,-500.0,0.00013698,2]
[331151100,1720108243328,-502.3351056,0.00013698,2]
[331151102,1720108243339,-3176.76,0.00013698,2]
[331151105,1720108243352,-500.0,0.00013698,2]
[331151107,1720108243362,-500.0,0.00013698,2]
[331151109,1720108243372,-429.88288086,0.00013698,2]
[331151111,1720108243383,-500.0,0.00013698,2]
[331151113,1720108243394,-500.0,0.00013698,2]
[331151115,1720108243404,-500.0,0.00013698,2]
[331151116,1720108243415,-500.0,0.00013698,2]
[331151118,1720108243425,-500.0,0.00013698,2]
[331151119,1720108243436,-504.01875086,0.00013698,2]
[331151120,1720108243446,-500.0,0.00013698,2]
[331151121,1720108243457,-500.0,0.00013698,2]
[331151122,1720108243467,-500.0,0.00013698,2]
[331151123,1720108243478,-500.0,0.00013698,2]
[331151125,1720108243488,-1694.99,0.00013698,2]
[331151127,1720108243498,-500.0,0.00013698,2]
[331151128,1720108243508,-500.0,0.00013698,2]
[331151129,1720108243517,-500.0,0.00013698,2]
[331151130,1720108243527,-500.0,0.00013698,2]
[331151131,1720108243537,-500.0,0.00013698,2]
[331151133,1720108243547,-501.41873712,0.00013698,2]
[331151134,1720108243558,-500.0,0.00013698,2]
[331151135,1720108243567,-500.0,0.00013698,2]
[331151136,1720108243578,-500.0,0.00013698,2]
[331151137,1720108243587,-500.0,0.00013698,2]
[331151138,1720108243599,-500.0,0.00013698,2]
[331151139,1720108243609,-500.0,0.00013698,2]
[331151140,1720108243619,-500.0,0.00013698,2]
[331151141,1720108243634,-500.0,0.00013698,2]
[331151142,1720108243645,-500.0,0.00013698,2]
[331151143,1720108243660,-450.49735244,0.00013698,2]
[331151144,1720108243672,-507.29910008,0.00013698,2]
[331151145,1720108243682,-500.0,0.00013698,2]
[331151146,1720108243691,-500.0,0.00013698,2]
[331151148,1720108243703,-1424.8,0.00013698,2]
[331151149,1720108243712,-500.0,0.00013698,2]
[331151150,1720108243722,-500.0,0.00013698,2]
[331151151,1720108243734,-500.0,0.00013698,2]
[331151152,1720108243744,-500.0,0.00013698,2]
[331151153,1720108243754,-502.49072805,0.00013698,2]
[331151154,1720108243764,-500.0,0.00013698,2]
[331151155,1720108243774,-500.0,0.00013698,2]
[331151156,1720108243784,-209.93455945,0.00013698,2]
[331151157,1720108243793,-500.0,0.00013698,2]
[331151158,1720108243803,-500.0,0.00013698,2]
[331151159,1720108243812,-500.0,0.00013698,2]
[331151160,1720108243822,-607.03,0.00013698,2]
[331151161,1720108243832,-1178.27,0.00013698,2]
[331151162,1720108243842,-500.0,0.00013698,2]
[331151163,1720108243854,-500.0,0.00013698,2]
[331151164,1720108243864,-500.0,0.00013698,2]
[331151165,1720108243874,-500.0,0.00013698,2]
[331151166,1720108243883,-500.0,0.00013698,2]
[331151167,1720108243892,-817.93,0.00013698,2]
[331151168,1720108243902,-509.95308106,0.00013698,2]
[331151169,1720108243912,-504.42,0.00013698,2]
[331151170,1720108243922,-509.45,0.00013698,2]
[331151171,1720108243931,-500.0,0.00013698,2]
[331151172,1720108243941,-505.97981691,0.00013698,2]
[331151173,1720108243950,-500.0,0.00013698,2]
[331151174,1720108243960,-3129.83,0.00013698,2]
[331151175,1720108243970,-500.0,0.00013698,2]
[331151176,1720108243980,-504.65355884,0.00013698,2]
[331151177,1720108243989,-500.0,0.00013698,2]
[331151178,1720108243999,-505.03447168,0.00013698,2]
[331151179,1720108244009,-500.0,0.00013698,2]
[331151180,1720108244018,-500.0,0.00013698,2]
[331151181,1720108244028,-853.3,0.00013698,2]
[331151182,1720108244041,-500.0,0.00013698,2]
[331151183,1720108244051,-197.62948231,0.00013698,2]
[331151184,1720108244060,-266.64331827,0.00013698,2]
[331151185,1720108244070,-468.79714183,0.00013698,2]
[331151186,1720108244080,-450.0,0.00013698,2]
[331151187,1720108244089,-504.01838315,0.00013698,2]
[331151188,1720108244101,-502.14449728,0.00013698,2]
[331151189,1720108244111,-6244.91,0.00013698,2]
[331151190,1720108244120,-500.0,0.00013698,2]
[331151191,1720108244130,-500.0,0.00013698,2]
[331151192,1720108244140,-426.89802828,0.00013698,2]
[331151193,1720108244150,-504.35788494,0.00013698,2]
[331151194,1720108244160,-208.85286476,0.00013698,2]
[331151195,1720108244170,-500.0,0.00013698,2]
[331151196,1720108244179,-500.0,0.00013698,2]
[331151197,1720108244189,-500.0,0.00013698,2]
[331151198,1720108244198,-500.0,0.00013698,2]
[331151199,1720108244208,-18589.09,0.00013698,2]
[331151200,1720108244217,-500.0,0.00013698,2]
[331151201,1720108244227,-500.0,0.00013698,2]
[331151202,1720108244236,-500.0,0.00013698,2]
[331151203,1720108244246,-500.0,0.00013698,2]
[331151204,1720108244256,-500.0,0.00013698,2]
[331151205,1720108244265,-500.0,0.00013698,2]
[331151206,1720108244275,-500.0,0.00013698,2]
[331151207,1720108244284,-500.0,0.00013698,2]
[331151208,1720108244294,-560.4574432,0.00013698,2]
[331151209,1720108244304,-1967.99,0.00013698,2]
[331151210,1720108244314,-500.0,0.00013698,2]
[331151211,1720108244324,-890.25,0.00013698,2]
[331151212,1720108244333,-500.0,0.00013698,2]
[331151213,1720108244343,-500.0,0.00013698,2]
[331151214,1720108244355,-500.0,0.00013698,2]
[331151215,1720108244365,-500.0,0.00013698,2]
[331151216,1720108244374,-500.0,0.00013698,2]
[331151217,1720108244383,-500.0,0.00013698,2]
[331151218,1720108244392,-500.0,0.00013698,2]
[331151219,1720108244402,-500.0,0.00013698,2]
[331151220,1720108244411,-504.74927562,0.00013698,2]
[331151221,1720108244421,-504.57823144,0.00013698,2]
[331151222,1720108244431,-3495.85,0.00013698,2]
[331151223,1720108244441,-500.0,0.00013698,2]
[331151224,1720108244451,-500.0,0.00013698,2]
[331151225,1720108244461,-500.0,0.00013698,2]
[331151226,1720108244474,-500.0,0.00013698,2]
[331151227,1720108244484,-501.45431292,0.00013698,2]
[331151228,1720108244494,-606.45,0.00013698,2]
[331151229,1720108244503,-502.27523963,0.00013698,2]
[331151230,1720108244512,-500.0,0.00013698,2]
[331151231,1720108244521,-501.23035577,0.00013698,2]
[331151232,1720108244531,-361.90964082,0.00013698,2]
[331151233,1720108244540,-200.0,0.00013698,2]
[331151234,1720108244549,-8052.85,0.00013698,2]
[331151235,1720108244558,-511.49372952,0.00013698,2]
[331151236,1720108244567,-500.0,0.00013698,2]
[331151237,1720108244577,-178.61289237,0.00013698,2]
[331151238,1720108244586,-199.61216583,0.00013698,2]
[331151239,1720108244599,-501.47314881,0.00013698,2]
[331151240,1720108244610,-500.0,0.00013698,2]
[331151241,1720108244619,-500.0,0.00013698,2]
[331151242,1720108244629,-500.0,0.00013698,2]
[331151243,1720108244639,-1178.71,0.00013698,2]
[331151244,1720108244654,-506.06682483,0.00013698,2]
[331151245,1720108244668,-500.0,0.00013698,2]
[331151246,1720108244679,-500.0,0.00013698,2]
[331151247,1720108244688,-345.95245614,0.00013698,2]
[331151248,1720108244699,-1185.06,0.00013698,2]
[331151249,1720108244709,-500.0,0.00013698,2]
[331151250,1720108244718,-500.0,0.00013698,2]
[331151251,1720108244727,-500.0,0.00013698,2]
[331151252,1720108244739,-1490.15,0.00013698,2]
[331151253,1720108244750,-501.53968215,0.00013698,2]
[331151254,1720108244759,-1073.34,0.00013698,2]
[331151255,1720108244769,-503.22960539,0.00013698,2]
[331151256,1720108244779,-500.0,0.00013698,2]
[331151257,1720108244789,-502.33221676,0.00013698,2]
[331151258,1720108244799,-500.0,0.00013698,2]
[331151259,1720108244808,-500.0,0.00013698,2]
[331151260,1720108244817,-500.0,0.00013698,2]
[331151261,1720108244826,-500.0,0.00013698,2]
[331151262,1720108244835,-1394.28,0.00013698,2]
[331151263,1720108244844,-586.93,0.00013698,2]
[331151264,1720108244856,-503.89990542,0.00013698,2]
[331151265,1720108244865,-3891.03,0.00013698,2]
[331151266,1720108244876,-502.604327,0.00013698,2]
[331151267,1720108244885,-500.0,0.00013698,2]
[331151268,1720108244896,-946.999268,0.00013699,2]
[331151269,1720108244905,-151.0,0.00013699,2]
[331151270,1720108244914,-3000.0,0.00013699,2]
[331151271,1720108244924,-151.0,0.00013699,2]
[331151272,1720108244934,-156.57167,0.00013699,2]
[331151273,1720108244943,-151.0,0.00013699,2]
[331151274,1720108244953,-151.0,0.00013699,2]
[331151275,1720108244962,-151.0,0.00013699,2]
[331151276,1720108244971,-151.0,0.00013699,2]
[331151277,1720108244980,-151.0,0.00013699,2]
[331151278,1720108244989,-634.247541,0.00013699,2]
[331151279,1720108244998,-634.247541,0.00013699,2]
[331151280,1720108245007,-448.097392,0.00013699,2]
[331151281,1720108245017,-805.71,0.00013779,2]
[331151282,1720108245026,-805.71,0.00013787,2]
[331151283,1720108245036,-805.71,0.00013801,2]
[331151284,1720108245045,-805.71,0.00013961,2]
[331151285,1720108245054,-805.71,0.00013961,2]
[331151286,1720108245064,-24811.0680381,0.00013962,2]
[331151287,1720108245073,-151.0,0.00013962,2]
[331151288,1720108245082,-151.0,0.00013962,2]
[331151289,1720108245092,-151.0,0.00013962,2]
[331151290,1720108245108,-151.0,0.00013962,2]
[331151291,1720108245118,-805.71,0.00013971,2]
[331151292,1720108245127,-805.71,0.00013971,2]
[331151293,1720108245136,-805.71,0.00013971,2]
[331151294,1720108245146,-805.71,0.00013971,2]
[331151295,1720108245155,-805.71,0.00013971,2]
[331151296,1720108245165,-500.0,0.00013971,2]
[331151297,1720108245175,-364.93296928,0.00013971,2]
[331151298,1720108245184,-27072.86121375,0.00013972,2]
[331151299,1720108245193,-831.07,0.00013972,2]
[331151300,1720108245202,-724.57,0.00013972,2]
[331151301,1720108245211,-500.0,0.00013972,2]
[331151302,1720108245222,-500.0,0.00013972,2]
[331151303,1720108245232,-500.0,0.00013972,2]
[331151304,1720108245241,-500.0,0.00013972,2]
[331151305,1720108245252,-500.0,0.00013972,2]
[331151306,1720108245261,-500.0,0.00013972,2]
[331151307,1720108245271,-401.1997685,0.00013972,2]
[331151308,1720108245281,-504.41982607,0.00013972,2]
[331151309,1720108245291,-500.0,0.00013972,2]
[331151310,1720108245301,-500.0,0.00013972,2]
[331151311,1720108245310,-500.0,0.00013972,2]
[331151312,1720108245320,-500.0,0.00013972,2]
[331151313,1720108245330,-11900.66,0.00013972,2]
[331151314,1720108245339,-500.0,0.00013972,2]
[331151315,1720108245351,-500.0,0.00013972,2]
[331151316,1720108245360,-500.0,0.00013972,2]
[331151317,1720108245369,-509.69890033,0.00013972,2]
[331151318,1720108245379,-500.0,0.00013972,2]
[331151319,1720108245388,-500.0,0.00013972,2]
[331151320,1720108245398,-570.9,0.00013972,2]
[331151321,1720108245407,-500.0,0.00013972,2]
[331151322,1720108245417,-1266.77,0.00013972,2]
[331151323,1720108245434,-500.0,0.00013972,2]
[331151324,1720108245446,-500.0,0.00013972,2]
[331151325,1720108245456,-227.65847582,0.00013972,2]
[331151326,1720108245472,-500.0,0.00013972,2]
[331151327,1720108245483,-500.0,0.00013972,2]
[331151328,1720108245493,-500.0,0.00013972,2]
[331151329,1720108245503,-500.0,0.00013972,2]
[331151330,1720108245512,-1707.27,0.00013972,2]
[331151331,1720108245522,-568.38722603,0.00013972,2]
[331151333,1720108245680,-500.0,0.00013972,2]
[331151335,1720108245690,-500.0,0.00013972,2]
[331151337,1720108245701,-500.0,0.00013972,2]
[331151339,1720108245710,-500.0,0.00013972,2]
[331151341,1720108245720,-786.47,0.00013972,2]
[331151343,1720108245729,-500.0,0.00013972,2]
[331151344,1720108245740,-500.0,0.00013972,2]
[331151345,1720108245752,-500.0,0.00013972,2]
[331151346,1720108245762,-500.0,0.00013972,2]
[331151347,1720108245771,-512.7,0.00013972,2]
[331151348,1720108245781,-500.0,0.00013972,2]
[331151349,1720108245791,-500.0,0.00013972,2]
[331151350,1720108245800,-500.0,0.00013972,2]
[331151351,1720108245809,-500.0,0.00013972,2]
[331151352,1720108245818,-1129.56,0.00013972,2]
[331151354,1720108245828,-1513.83,0.00013972,2]
[331151355,1720108245837,-500.0,0.00013972,2]
[331151357,1720108245847,-500.0,0.00013972,2]
[331151360,1720108245856,-500.0,0.00013972,2]
[331151361,1720108245865,-500.0,0.00013972,2]
[331151362,1720108245875,-500.0,0.00013972,2]
[331151363,1720108245884,-518.08539196,0.00013972,2]
[331151364,1720108245893,-500.0,0.00013972,2]
[331151365,1720108245902,-500.0,0.00013972,2]
[331151366,1720108245911,-500.0,0.00013972,2]
[331151368,1720108245920,-944.71,0.00013972,2]
[331151370,1720108245929,-500.0,0.00013972,2]
[331151371,1720108245938,-500.0,0.00013972,2]
[331151372,1720108245947,-225.18702295,0.00013972,2]
[331151373,1720108245957,-500.0,0.00013972,2]
[331151375,1720108245966,-500.0,0.00013972,2]
[331151376,1720108245976,-700.66,0.00013972,2]
[331151377,1720108245985,-500.0,0.00013972,2]
[331151378,1720108245994,-500.0,0.00013972,2]
[331151379,1720108246004,-795.56,0.00013972,2]
[331151380,1720108246013,-500.0,0.00013972,2]
[331151381,1720108246023,-500.0,0.00013972,2]
[331151382,1720108246032,-4709.07,0.00013972,2]
[331151383,1720108246041,-500.0,0.00013972,2]
[331151384,1720108246050,-500.0,0.00013972,2]
[331151385,1720108246059,-766.15,0.00013972,2]
[331151386,1720108246068,-500.0,0.00013972,2]
[331151387,1720108246077,-264.55401793,0.00013972,2]
[331151388,1720108246086,-500.0,0.00013972,2]
[331151389,1720108246095,-500.0,0.00013972,2]
[331151390,1720108246105,-5504.51,0.00013972,2]
[331151391,1720108246114,-500.0,0.00013972,2]
[331151392,1720108246123,-484.88004315,0.00013972,2]
[331151393,1720108246133,-500.0,0.00013972,2]
[331151394,1720108246142,-5620.07,0.00013972,2]
[331151395,1720108246152,-500.0,0.00013972,2]
[331151396,1720108246161,-500.0,0.00013972,2]
[331151397,1720108246171,-500.0,0.00013972,2]
[331151398,1720108246180,-500.0,0.00013972,2]
[331151399,1720108246190,-500.0,0.00013972,2]
[331151400,1720108246199,-500.0,0.00013972,2]
[331151401,1720108246208,-843.72,0.00013972,2]
[331151402,1720108246217,-500.0,0.00013972,2]
[331151403,1720108246226,-151.0,0.00013972,2]
[331151404,1720108246235,-715.86,0.00013972,2]
[331151405,1720108246244,-567.18717638,0.00013972,2]
[331151406,1720108246254,-1491.96,0.00013972,2]
[331151407,1720108246263,-151.0,0.00013972,2]
[331151408,1720108246272,-500.0,0.00013972,2]
[331151409,1720108246282,-151.0,0.00013972,2]
[331151410,1720108246291,-586.55,0.00013972,2]
[331151411,1720108246301,-500.0,0.00013972,2]
[331151412,1720108246310,-500.0,0.00013972,2]
[331151413,1720108246320,-586.55,0.00013972,2]
[331151414,1720108246330,-151.0,0.00013972,2]
[331151415,1720108246339,-500.0,0.00013972,2]
[331151416,1720108246348,-500.0,0.00013972,2]
[331151417,1720108246358,-9714.11,0.00013972,2]
[331151418,1720108246367,-500.0,0.00013972,2]
[331151419,1720108246376,-561.51,0.00013972,2]
[331151420,1720108246387,-500.0,0.00013972,2]
[331151421,1720108246397,-500.0,0.00013972,2]
[331151422,1720108246406,-686.02,0.00013972,2]
[331151423,1720108246415,-500.0,0.00013972,2]
[331151424,1720108246425,-505.20988298,0.00013972,2]
[331151425,1720108246434,-500.0,0.00013972,2]
[331151426,1720108246443,-500.0,0.00013972,2]
[331151427,1720108246454,-500.0,0.00013972,2]
[331151428,1720108246463,-500.0,0.00013972,2]
[331151429,1720108246473,-2457.7,0.00013972,2]
[331151430,1720108246483,-500.0,0.00013972,2]
[331151431,1720108246492,-500.0,0.00013972,2]
[331151432,1720108246502,-1138.99,0.00013972,2]
[331151433,1720108246511,-283.07585689,0.00013972,2]
[331151434,1720108246520,-1065.74,0.00013972,2]
[331151435,1720108246531,-632.23,0.00013972,2]
[331151436,1720108246540,-500.0,0.00013972,2]
[331151437,1720108246550,-505.56508567,0.00013972,2]
[331151438,1720108246560,-500.0,0.00013972,2]
[331151439,1720108246570,-3176.76,0.00013972,2]
[331151440,1720108246582,-500.0,0.00013972,2]
[331151441,1720108246593,-347.45257925,0.00013972,2]
[331151442,1720108246605,-500.0,0.00013972,2]
[331151443,1720108246617,-500.0,0.00013972,2]
[331151444,1720108246627,-500.0,0.00013972,2]
[331151445,1720108246638,-500.0,0.00013972,2]
[331151446,1720108246648,-500.0,0.00013972,2]
[331151447,1720108246664,-1694.99,0.00013972,2]
[331151448,1720108246679,-500.0,0.00013972,2]
[331151449,1720108246690,-500.0,0.00013972,2]
[331151450,1720108246701,-500.0,0.00013972,2]
[331151451,1720108246710,-151.0,0.00013972,2]
[331151452,1720108246720,-151.0,0.00013972,2]
[331151453,1720108246729,-500.0,0.00013972,2]
[331151454,1720108246738,-151.0,0.00013972,2]
[331151455,1720108246748,-151.0,0.00013972,2]
[331151456,1720108246758,-1424.8,0.00013972,2]
[331151457,1720108246767,-500.0,0.00013972,2]
[331151458,1720108246776,-500.0,0.00013972,2]
[331151459,1720108246786,-500.0,0.00013972,2]
[331151460,1720108246795,-500.0,0.00013972,2]
[331151461,1720108246805,-1178.27,0.00013972,2]
[331151462,1720108246815,-607.03,0.00013972,2]
[331151463,1720108246824,-500.0,0.00013972,2]
[331151464,1720108246834,-303.80548699,0.00013972,2]
[331151465,1720108246843,-500.0,0.00013972,2]
[331151466,1720108246856,-151.0,0.00013972,2]
[331151467,1720108246866,-151.0,0.00013972,2]
[331151468,1720108246875,-817.93,0.00013972,2]
[331151469,1720108246885,-504.42,0.00013972,2]
[331151470,1720108246894,-509.45,0.00013972,2]
[331151471,1720108246904,-3129.83,0.00013972,2]
[331151472,1720108246914,-500.0,0.00013972,2]
[331151473,1720108246924,-500.0,0.00013972,2]
[331151474,1720108246933,-511.367925,0.00013972,2]
[331151475,1720108246942,-500.0,0.00013972,2]
[331151476,1720108246951,-853.3,0.00013972,2]
[331151477,1720108246961,-500.0,0.00013972,2]
[331151478,1720108246972,-6244.91,0.00013972,2]
[331151479,1720108246982,-500.0,0.00013972,2]
[331151480,1720108246991,-151.0,0.00013972,2]
[331151481,1720108247000,-151.0,0.00013972,2]
[331151482,1720108247010,-500.0,0.00013972,2]
[331151483,1720108247019,-500.0,0.00013972,2]
[331151484,1720108247029,-500.0,0.00013972,2]
[331151485,1720108247038,-151.0,0.00013972,2]
[331151486,1720108247048,-151.0,0.00013972,2]
[331151487,1720108247058,-550.802802,0.00013972,2]
[331151488,1720108247067,-18589.09,0.00013972,2]
[331151489,1720108247076,-500.0,0.00013972,2]
[331151490,1720108247086,-500.0,0.00013972,2]
[331151491,1720108247096,-500.0,0.00013972,2]
[331151492,1720108247109,-500.0,0.00013972,2]
[331151493,1720108247120,-500.0,0.00013972,2]
[331151494,1720108247128,-1967.99,0.00013972,2]
[331151495,1720108247137,-890.25,0.00013972,2]
[331151496,1720108247146,-504.35030827,0.00013972,2]
[331151497,1720108247155,-500.0,0.00013972,2]
[331151498,1720108247164,-500.0,0.00013972,2]
[331151499,1720108247172,-500.0,0.00013972,2]
[331151500,1720108247181,-3495.85,0.00013972,2]
[331151501,1720108247190,-500.0,0.00013972,2]
[331151502,1720108247199,-500.0,0.00013972,2]
[331151503,1720108247208,-500.0,0.00013972,2]
[331151504,1720108247217,-500.0,0.00013972,2]
[331151505,1720108247227,-8052.85,0.00013972,2]
[331151506,1720108247236,-500.0,0.00013972,2]